fUSD/lending_fUSD_20240425
["ID","MTS","AMOUNT","RATE_DAILY","PERIOD"]
[323536609,1714077044727,-537.46363967,0.00011231,2]
[323536610,1714077044736,-500.0,0.00011231,2]
[323536611,1714077044746,-500.0,0.00011231,2]
[323536612,1714077044755,-500.0,0.00011231,2]
[323536613,1714077044764,-500.0,0.00011231,2]
[323536614,1714077044775,-500.0,0.00011231,2]
[323536615,1714077044785,-500.0,0.00011231,2]
[323536616,1714077044795,-507.83984741,0.00011231,2]
[323536617,1714077044809,-500.0,0.00011231,2]
[323536618,1714077044820,-561.53,0.00011231,2]
[323536619,1714077044831,-683.18,0.00011231,2]
[323536620,1714077044840,-306.94967721,0.00011231,2]
[323536621,1714077044850,-500.0,0.00011231,2]
[323536622,1714077044859,-713.72,0.00011231,2]
[323536623,1714077044868,-500.0,0.00011231,2]
[323536624,1714077044877,-500.0,0.00011231,2]
[323536625,1714077044886,-500.0,0.00011231,2]
[323536626,1714077044895,-500.0,0.00011231,2]
[323536627,1714077044904,-500.0,0.00011231,2]
[323536628,1714077044913,-500.0,0.00011231,2]
[323536629,1714077044922,-500.0,0.00011231,2]
[323536630,1714077044931,-500.0,0.00011231,2]
[323536631,1714077044940,-500.0,0.00011231,2]
[323536632,1714077044949,-1907.38,0.00011231,2]
[323536633,1714077044959,-500.0,0.00011231,2]
[323536634,1714077044969,-812.72,0.00011231,2]
[323536635,1714077044978,-505.43010153,0.00011231,2]
[323536636,1714077044987,-3156.38,0.00011231,2]
[323536637,1714077044997,-500.0,0.00011231,2]
[323536638,1714077045006,-500.0,0.00011231,2]
[323536639,1714077045017,-500.0,0.00011231,2]
[323536640,1714077045027,-500.0,0.00011231,2]
[323536641,1714077045037,-500.0,0.00011231,2]
[323536642,1714077045049,-500.0,0.00011231,2]
[323536643,1714077045059,-500.0,0.00011231,2]
[323536644,1714077045069,-514.05,0.00011231,2]
[323536645,1714077045078,-1098.06,0.00011231,2]
[323536646,1714077045086,-536.16714436,0.00011231,2]
[323536647,1714077045096,-514.13772891,0.00011231,2]
[323536648,1714077045104,-500.0,0.00011231,2]
[323536649,1714077045114,-500.0,0.00011231,2]
[323536650,1714077045123,-976.98,0.00011231,2]
[323536651,1714077045132,-500.0,0.00011231,2]
[323536652,1714077045141,-535.82973445,0.00011231,2]
[323536653,1714077045151,-500.0,0.00011231,2]
[323536654,1714077045162,-500.0,0.00011231,2]
[323536655,1714077045171,-500.0,0.00011231,2]
[323536656,1714077045181,-752.67,0.00011231,2]
[323536657,1714077045191,-500.0,0.00011231,2]
[323536658,1714077045201,-243.16424071,0.00011231,2]
[323536659,1714077045210,-500.0,0.00011231,2]
[323536660,1714077045219,-500.0,0.00011231,2]
[323536661,1714077045228,-508.0,0.00011231,2]
[323536662,1714077045239,-500.0,0.00011231,2]
[323536663,1714077045249,-1305.27,0.00011231,2]
[323536664,1714077045260,-500.0,0.00011231,2]
[323536665,1714077045270,-500.0,0.00011231,2]
[323536666,1714077045280,-500.0,0.00011231,2]
[323536667,1714077045289,-531.0,0.00011231,2]
[323536668,1714077045298,-500.0,0.00011231,2]
[323536669,1714077045308,-500.0,0.00011231,2]
[323536670,1714077045317,-500.0,0.00011231,2]
[323536671,1714077045327,-3367.71,0.00011231,2]
[323536672,1714077045336,-500.0,0.00011231,2]
[323536673,1714077045344,-500.0,0.00011231,2]
[323536674,1714077045353,-504.25110574,0.00011231,2]
[323536675,1714077045362,-500.0,0.00011231,2]
[323536676,1714077045372,-500.0,0.00011231,2]
[323536677,1714077045383,-500.0,0.00011231,2]
[323536678,1714077045392,-639.29081527,0.00011232,2]
[323536679,1714077045402,-500.0,0.00011232,2]
[323536680,1714077045412,-621.66,0.00011232,2]
[323536681,1714077045422,-373.19383432,0.00011232,2]
[323536682,1714077045435,-145.89616568,0.00011232,2]
[323536683,1714077045445,-500.0,0.00011232,2]
[323536684,1714077045454,-500.0,0.00011232,2]
[323536685,1714077045465,-500.0,0.00011232,2]
[323536686,1714077045475,-547.0095034,0.00011232,2]
[323536687,1714077045486,-89.6504966,0.00011232,2]
[323536688,1714077045495,-287.55847561,0.00011232,2]
[323536689,1714077045504,-500.0,0.00011232,2]
[323536690,1714077045513,-597.05,0.00011232,2]
[323536691,1714077045522,-500.0,0.00011232,2]
[323536692,1714077045531,-500.0,0.00011232,2]
[323536693,1714077045540,-500.0,0.00011232,2]
[323536694,1714077045550,-500.0,0.00011232,2]
[323536695,1714077045559,-277.30685688,0.00011232,2]
[323536696,1714077045571,-382.29314312,0.00011232,2]
[323536697,1714077045581,-261.39685688,0.00011232,2]
[323536710,1714077046091,-354.72788086,0.00011129,2]
[323536713,1714077046103,-145.27211914,0.00011129,2]
[323536715,1714077046112,-203.22755978,0.00011232,2]
[323536717,1714077046123,-154.18986498,0.00011232,2]
[323536719,1714077046132,-561.15,0.00011232,2]
[323536721,1714077046141,-500.0,0.00011232,2]
[323536722,1714077046150,-500.0,0.00011232,2]
[323536724,1714077046159,-500.0,0.00011232,2]
[323536726,1714077046168,-500.0,0.00011232,2]
[323536728,1714077046177,-500.0,0.00011232,2]
[323536730,1714077046186,-500.0,0.00011232,2]
[323536732,1714077046195,-496.36797761,0.00011232,2]
[323536733,1714077046206,-3.63202239,0.00011232,2]
[323536734,1714077046215,-500.0,0.00011232,2]
[323536735,1714077046224,-500.0,0.00011232,2]
[323536736,1714077046233,-500.0,0.00011232,2]
[323536737,1714077046243,-500.0,0.00011232,2]
[323536738,1714077046253,-500.0,0.00011232,2]
[323536739,1714077046262,-107.59125759,0.00011232,2]
[323536740,1714077046274,-356.64811047,0.00011232,2]
[323536741,1714077046284,-500.0,0.00011232,2]
[323536742,1714077046294,-364.4073463,0.00011232,2]
[323536743,1714077046305,-500.0,0.00011232,2]
[323536744,1714077046315,-180.40307473,0.00011232,2]
[323536745,1714077046347,-319.59692527,0.00011232,2]
[323536746,1714077046357,-235.69307473,0.00011232,2]
[323536747,1714077046392,-264.30692527,0.00011232,2]
[323536748,1714077046402,-115.96000941,0.00011232,2]
[323536749,1714077046414,-732.32999059,0.00011232,2]
[323536750,1714077046424,-500.0,0.00011232,2]
[323536751,1714077046434,-500.0,0.00011232,2]
[323536752,1714077046443,-500.0,0.00011232,2]
[323536753,1714077046453,-500.0,0.00011232,2]
[323536754,1714077046464,-419.27000932,0.00011232,2]
[323536755,1714077046477,-80.72999068,0.00011232,2]
[323536756,1714077046486,-429.26999432,0.00011232,2]
[323536757,1714077046498,-70.73000568,0.00011232,2]
[323536758,1714077046507,-500.0,0.00011232,2]
[323536759,1714077046517,-500.0,0.00011232,2]
[323536760,1714077046526,-530.97,0.00011232,2]
[323536761,1714077046535,-6500.8581238,0.00011232,2]
[323536762,1714077046547,-1040.79092795,0.00011232,2]
[323536763,1714077046559,-282.23094825,0.00011232,2]
[323536764,1714077046568,-500.0,0.00011232,2]
[323536765,1714077046579,-481.39808285,0.00011232,2]
[323536766,1714077046590,-18.60191715,0.00011232,2]
[323536767,1714077046599,-331.51,0.00011232,2]
[323536769,1714077046609,-335.62,0.00011232,2]
[323536771,1714077046620,-500.0,0.00011232,2]
[323536774,1714077046632,-500.0,0.00011232,2]
[323536776,1714077046643,-5661.12,0.00011232,2]
[323536777,1714077046653,-859.79,0.00011232,2]
[323536778,1714077046662,-530.11,0.00011232,2]
[323536779,1714077046673,-573.79,0.00011232,2]
[323536780,1714077046682,-574.24,0.00011232,2]
[323536781,1714077046692,-547.3,0.00011232,2]
[323536782,1714077046701,-4652.28,0.00011232,2]
[323536783,1714077046711,-500.0,0.00011232,2]
[323536784,1714077046721,-568.96,0.00011232,2]
[323536785,1714077046730,-711.3,0.00011232,2]
[323536786,1714077046739,-2802.11,0.00011232,2]
[323536787,1714077046749,-940.8,0.00011232,2]
[323536788,1714077046760,-2004.46,0.00011232,2]
[323536789,1714077046770,-1448.35,0.00011232,2]
[323536790,1714077046781,-500.0,0.00011232,2]
[323536791,1714077046790,-500.0,0.00011232,2]
[323536792,1714077046803,-500.0,0.00011232,2]
[323536793,1714077046813,-500.0,0.00011232,2]
[323536794,1714077046822,-1814.07,0.00011232,2]
[323536795,1714077046832,-2206.06,0.00011232,2]
[323536796,1714077046842,-843.45,0.00011232,2]
[323536797,1714077046851,-500.0,0.00011232,2]
[323536798,1714077046861,-500.0,0.00011232,2]
[323536799,1714077046870,-3603.18,0.00011232,2]
[323536800,1714077046880,-13987.49,0.00011232,2]
[323536801,1714077046890,-411.02574353,0.00011232,2]
[323536802,1714077046902,-1100.00425647,0.00011232,2]
[323536803,1714077046912,-1092.76,0.00011281,2]
[323536804,1714077046921,-565.8337,0.00011301,2]
[323536805,1714077046931,-2154.2782,0.00011301,2]
[323536806,1714077046940,-192.19193026,0.00011303,2]
[323536807,1714077046950,-500.0,0.00011403,2]
[323536808,1714077046959,-500.0,0.00011403,2]
[323536809,1714077046970,-517.22228542,0.00011403,2]
[323536810,1714077046980,-699.81,0.00011403,2]
[323536811,1714077046990,-1076.46,0.00011403,2]
[323536812,1714077047001,-157.48367712,0.00011403,2]
[323536813,1714077047013,-583.03632288,0.00011403,2]
[323536814,1714077047024,-671.65,0.00011403,2]
[323536815,1714077047035,-500.0,0.00011403,2]
[323536816,1714077047045,-557.7,0.00011403,2]
[323536817,1714077047056,-843.5,0.00011403,2]
[323536818,1714077047066,-1595.01179122,0.00011403,2]
[323536819,1714077047078,-618.07820878,0.00011403,2]
[323536820,1714077047088,-146.20036493,0.00011403,2]
[323536821,1714077047116,-290.77689149,0.00011403,2]
[323536822,1714077047129,-2776.09274358,0.00011403,2]
[323536823,1714077047139,-500.0,0.00011403,2]
[323536824,1714077047149,-743.14,0.00011403,2]
[323536825,1714077047159,-500.0,0.00011403,2]
[323536826,1714077047170,-500.0,0.00011403,2]
[323536827,1714077047180,-598.51,0.00011403,2]
[323536828,1714077047190,-500.0,0.00011403,2]
[323536829,1714077047201,-1590.73,0.00011403,2]
[323536830,1714077047211,-500.0,0.00011403,2]
[323536831,1714077047222,-1588.07,0.00011403,2]
[323536832,1714077047233,-500.0,0.00011403,2]
[323536833,1714077047244,-500.0,0.00011403,2]
[323536834,1714077047254,-1130.15,0.00011403,2]
[323536835,1714077047264,-809.59,0.00011403,2]
[323536836,1714077047273,-500.0,0.00011403,2]
[323536837,1714077047283,-581.7,0.00011403,2]
[323536838,1714077047293,-500.0,0.00011403,2]
[323536839,1714077047303,-500.0,0.00011403,2]
[323536840,1714077047313,-301.69401845,0.00011403,2]
[323536841,1714077047323,-500.0,0.00011403,2]
[323536842,1714077047333,-3768.73,0.00011403,2]
[323536843,1714077047342,-500.0,0.00011403,2]
[323536844,1714077047352,-500.0,0.00011403,2]
[323536845,1714077047362,-500.0,0.00011403,2]
[323536846,1714077047371,-500.0,0.00011403,2]
[323536847,1714077047383,-1304.78,0.00011403,2]
[323536848,1714077047393,-500.0,0.00011403,2]
[323536849,1714077047402,-629.26,0.00011403,2]
[323536850,1714077047412,-500.0,0.00011403,2]
[323536851,1714077047423,-500.0,0.00011403,2]
[323536852,1714077047433,-669.6,0.00011404,2]
[323536853,1714077047443,-500.0,0.00011404,2]
[323536854,1714077047453,-500.0,0.00011404,2]
[323536855,1714077047463,-500.0,0.00011404,2]
[323536856,1714077047473,-500.0,0.00011404,2]
[323536857,1714077047483,-500.0,0.00011404,2]
[323536858,1714077047493,-527.93,0.00011404,2]
[323536859,1714077047503,-521.94,0.00011404,2]
[323536860,1714077047513,-500.0,0.00011404,2]
[323536861,1714077047522,-500.0,0.00011404,2]
[323536862,1714077047532,-500.0,0.00011404,2]
[323536863,1714077047542,-500.0,0.00011404,2]
[323536864,1714077047551,-500.0,0.00011404,2]
[323536865,1714077047561,-500.0,0.00011404,2]
[323536866,1714077047571,-500.0,0.00011404,2]
[323536867,1714077047582,-500.0,0.00011404,2]
[323536868,1714077047591,-500.0,0.00011404,2]
[323536869,1714077047601,-500.0,0.00011404,2]
[323536870,1714077047611,-500.0,0.00011404,2]
[323536871,1714077047621,-500.0,0.00011404,2]
[323536872,1714077047631,-500.0,0.00011404,2]
[323536873,1714077047641,-500.0,0.00011404,2]
[323536874,1714077047651,-500.0,0.00011404,2]
[323536875,1714077047660,-500.0,0.00011404,2]
[323536876,1714077047670,-500.0,0.00011404,2]
[323536877,1714077047680,-500.0,0.00011404,2]
[323536878,1714077047690,-500.0,0.00011404,2]
[323536879,1714077047700,-500.0,0.00011404,2]
[323536880,1714077047709,-500.0,0.00011404,2]
[323536881,1714077047719,-500.0,0.00011404,2]
[323536882,1714077047730,-500.0,0.00011404,2]
[323536883,1714077047739,-500.0,0.00011404,2]
[323536884,1714077047749,-500.0,0.00011404,2]
[323536885,1714077047758,-500.0,0.00011404,2]
[323536886,1714077047768,-687.35,0.00011404,2]
[323536887,1714077047778,-780.64,0.00011404,2]
[323536888,1714077047788,-544.94,0.00011404,2]
[323536889,1714077047800,-1035.96,0.00011404,2]
[323536890,1714077047814,-923.61,0.00011404,2]
[323536891,1714077047824,-500.0,0.00011404,2]
[323536892,1714077047837,-752.81,0.00011404,2]
[323536893,1714077047847,-500.0,0.00011404,2]
[323536894,1714077047858,-5950.18,0.00011404,2]
[323536895,1714077047868,-500.0,0.00011404,2]
[323536896,1714077047878,-1114.92,0.00011404,2]
[323536897,1714077047887,-500.0,0.00011404,2]
[323536898,1714077047899,-939.89,0.00011404,2]
[323536899,1714077047910,-558.09,0.00011404,2]
[323536900,1714077047925,-589.99,0.00011404,2]
[323536901,1714077047935,-872.65,0.00011404,2]
[323536902,1714077047945,-17515.64,0.00011404,2]
[323536903,1714077047954,-616.72,0.00011404,2]
[323536904,1714077047964,-1971.48,0.00011404,2]
[323536905,1714077047974,-500.0,0.00011404,2]
[323536906,1714077047983,-500.0,0.00011404,2]
[323536907,1714077047993,-564.56,0.00011404,2]
[323536908,1714077048003,-723.21,0.00011404,2]
[323536909,1714077048014,-1212.38,0.00011404,2]
[323536910,1714077048023,-1075.7,0.00011404,2]
[323536911,1714077048033,-500.0,0.00011404,2]
[323536912,1714077048044,-534.21,0.00011404,2]
[323536913,1714077048055,-513.2,0.00011404,2]
[323536914,1714077048065,-500.0,0.00011404,2]
[323536915,1714077048075,-2147.19,0.00011404,2]
[323536916,1714077048086,-588.59,0.00011404,2]
[323536917,1714077048096,-532.8,0.00011404,2]
[323536918,1714077048106,-591.8,0.00011404,2]
[323536919,1714077048115,-935.68,0.00011404,2]
[323536920,1714077048124,-500.0,0.00011404,2]
[323536921,1714077048134,-500.0,0.00011404,2]
[323536922,1714077048143,-500.0,0.00011404,2]
[323536923,1714077048153,-1899.87,0.00011404,2]
[323536924,1714077048162,-1257.75,0.00011404,2]
[323536925,1714077048171,-500.0,0.00011404,2]
[323536926,1714077048181,-2688.9,0.00011404,2]
[323536927,1714077048191,-527.38,0.00011404,2]
[323536928,1714077048202,-583.56,0.00011404,2]
[323536929,1714077048212,-500.0,0.00011404,2]
[323536930,1714077048222,-655.8,0.00011404,2]
[323536931,1714077048232,-1002.29,0.00011404,2]
[323536932,1714077048243,-500.0,0.00011404,2]
[323536933,1714077048253,-576.58,0.00011404,2]
[323536934,1714077048263,-500.0,0.00011404,2]
[323536935,1714077048273,-973.33,0.00011404,2]
[323536936,1714077048282,-500.0,0.00011405,2]
[323536937,1714077048292,-500.0,0.00011405,2]
[323536938,1714077048302,-500.0,0.00011405,2]
[323536939,1714077048311,-608.59,0.00011405,2]
[323536940,1714077048321,-307.60035568,0.00011405,2]
[323536941,1714077048331,-500.0,0.00011504,2]
[323536942,1714077048341,-500.0,0.00011504,2]
[323536943,1714077048350,-501.08,0.00011504,2]
[323536944,1714077048359,-500.0,0.00011504,2]
[323536945,1714077048369,-500.0,0.00011504,2]
[323536946,1714077048379,-500.0,0.00011504,2]
[323536947,1714077048392,-500.0,0.00011504,2]
[323536948,1714077048403,-451.34933644,0.00011505,2]
[323536949,1714077048413,-500.0,0.00011505,2]
[323536950,1714077048425,-500.0,0.00011505,2]
[323536951,1714077048440,-500.0,0.00011505,2]
[323536952,1714077048449,-153.7539101,0.00011505,2]
[323536953,1714077048459,-500.0,0.00011505,2]
[323536954,1714077048469,-500.0,0.00011505,2]
[323536955,1714077048478,-500.0,0.00011505,2]
[323536956,1714077048488,-500.0,0.00011505,2]
[323536957,1714077048498,-509.22302604,0.00011505,2]
[323536958,1714077048507,-500.0,0.00011505,2]
[323536959,1714077048517,-500.0,0.00011505,2]
[323536960,1714077048526,-500.0,0.00011505,2]
[323536961,1714077048536,-500.0,0.00011505,2]
[323536962,1714077048547,-500.0,0.00011505,2]
[323536963,1714077048556,-500.0,0.00011505,2]
[323536964,1714077048566,-500.0,0.00011505,2]
[323536965,1714077048575,-500.0,0.00011505,2]
[323536966,1714077048586,-500.0,0.00011505,2]
[323536967,1714077048596,-500.0,0.00011505,2]
[323536968,1714077048605,-180.11424121,0.00011505,2]
[323536969,1714077048615,-500.0,0.00011505,2]
[323536970,1714077048624,-500.0,0.00011505,2]
[323536971,1714077048634,-500.0,0.00011505,2]
[323536972,1714077048643,-502.61630787,0.00011505,2]
[323536973,1714077048653,-500.0,0.00011505,2]
[323536974,1714077048663,-500.0,0.00011505,2]
[323536975,1714077048672,-500.0,0.00011505,2]
[323536976,1714077048682,-31.02039597,0.00011505,2]
[323536977,1714077048696,-468.97960403,0.00011505,2]
[323536978,1714077048706,-512.98,0.00011505,2]
[323536979,1714077048715,-500.0,0.00011505,2]
[323536980,1714077048725,-338.04039373,0.00011505,2]
[323536981,1714077048738,-161.95960627,0.00011505,2]
[323536982,1714077048748,-128.86039373,0.00011505,2]
[323536983,1714077048760,-260.59,0.00011505,2]
[323536984,1714077048772,-110.54960627,0.00011505,2]
[323536985,1714077048973,-500.0,0.00011505,2]
[323536986,1714077048982,-215.15,0.00011505,2]
[323536987,1714077048992,-500.0,0.00011505,2]
[323536988,1714077049001,-500.0,0.00011505,2]
[323536989,1714077049010,-500.0,0.00011505,2]
[323536990,1714077049019,-500.0,0.00011505,2]
[323536991,1714077049029,-344.62099905,0.00011505,2]
[323536992,1714077049043,-155.37900095,0.00011505,2]
[323536993,1714077049054,-500.0,0.00011505,2]
[323536994,1714077049065,-500.0,0.00011505,2]
[323536995,1714077049075,-500.0,0.00011505,2]
[323536996,1714077049086,-500.0,0.00011505,2]
[323536997,1714077049096,-500.0,0.00011505,2]
[323536998,1714077049105,-500.0,0.00011505,2]
[323536999,1714077049114,-246.43558134,0.00011505,2]
[323537000,1714077049125,-250.5,0.00011505,2]
[323537001,1714077049399,-500.0,0.00011129,2]
[323537002,1714077049408,-73.99441866,0.00011505,2]
[323537003,1714077049418,-252.79549003,0.00011505,2]
[323537004,1714077049428,-580.12,0.00011505,2]
[323537005,1714077049437,-512.87,0.00011505,2]
[323537006,1714077049447,-561.53,0.00011505,2]
[323537007,1714077049457,-683.18,0.00011505,2]
[323537008,1714077049466,-500.0,0.00011505,2]
[323537009,1714077049475,-713.72,0.00011505,2]
[323537010,1714077049485,-410.27,0.00011505,2]
[323537011,1714077049494,-500.0,0.00011505,2]
[323537012,1714077049503,-500.0,0.00011505,2]
[323537013,1714077049512,-500.0,0.00011505,2]
[323537014,1714077049522,-500.0,0.00011505,2]
[323537015,1714077049531,-1907.38,0.00011505,2]
[323537016,1714077049540,-812.72,0.00011505,2]
[323537017,1714077049549,-3156.38,0.00011505,2]
[323537018,1714077049559,-500.0,0.00011505,2]
[323537019,1714077049569,-500.0,0.00011505,2]
[323537020,1714077049581,-500.0,0.00011505,2]
[323537021,1714077049591,-500.0,0.00011505,2]
[323537022,1714077049600,-500.0,0.00011505,2]
[323537023,1714077049609,-514.05,0.00011505,2]
[323537024,1714077049618,-542.83820823,0.00011505,2]
[323537025,1714077049630,-555.22179177,0.00011505,2]
[323537026,1714077049639,-694.77820823,0.00011505,2]
[323537027,1714077049650,-282.20179177,0.00011505,2]
[323537028,1714077049658,-117.79820823,0.00011505,2]
[323537029,1714077049669,-337.65,0.00011505,2]
[323537030,1714077049689,-500.0,0.0001113,2]
[323537031,1714077049698,-44.55179177,0.00011505,2]
[323537032,1714077049707,-752.67,0.00011505,2]
[323537033,1714077049716,-500.0,0.00011505,2]
[323537034,1714077049724,-169.42897885,0.00011505,2]
[323537035,1714077049748,-330.57102115,0.00011505,2]
[323537036,1714077049757,-508.0,0.00011505,2]
[323537037,1714077049767,-547.96415019,0.00011505,2]
[323537038,1714077049776,-105.46492866,0.00011505,2]
[323537039,1714077049788,-1199.80507134,0.00011505,2]
[323537040,1714077049797,-420.67556345,0.00011505,2]
[323537041,1714077049808,-79.32443655,0.00011505,2]
[323537042,1714077049818,-180.49325017,0.00011505,2]
[323537043,1714077049839,-350.50674983,0.00011505,2]
[323537044,1714077049848,-35.85475022,0.00011505,2]
[323537045,1714077049865,-448.214748,0.00011505,2]
[323537046,1714077049930,-1468.79524653,0.00011505,2]
[323537047,1714077049942,-565.16127441,0.00011505,2]
[323537048,1714077049959,-849.68398084,0.00011505,2]
[323537049,1714077049968,-500.0,0.00011505,2]
[323537050,1714077049978,-500.0,0.00011505,2]
[323537051,1714077049987,-500.0,0.00011505,2]
[323537052,1714077049998,-621.66,0.00011506,2]
[323537053,1714077050007,-519.09,0.00011506,2]
[323537054,1714077050016,-500.0,0.00011506,2]
[323537055,1714077050026,-500.0,0.00011506,2]
[323537056,1714077050036,-500.0,0.00011506,2]
[323537057,1714077050045,-636.66,0.00011506,2]
[323537058,1714077050054,-500.0,0.00011506,2]
[323537059,1714077050063,-573.40601916,0.00011506,2]
[323537060,1714077050075,-23.64398084,0.00011506,2]
[323537061,1714077050087,-500.0,0.00011506,2]
[323537062,1714077050097,-500.0,0.00011506,2]
[323537063,1714077050106,-500.0,0.00011506,2]
[323537064,1714077050115,-454.53,0.00011506,2]
[323537065,1714077050124,-659.6,0.00011506,2]
[323537066,1714077050133,-561.15,0.00011506,2]
[323537067,1714077050143,-500.0,0.00011506,2]
[323537068,1714077050152,-500.0,0.00011506,2]
[323537069,1714077050161,-500.0,0.00011506,2]
[323537070,1714077050171,-500.0,0.00011506,2]
[323537071,1714077050180,-500.0,0.00011506,2]
[323537072,1714077050189,-848.29,0.00011506,2]
[323537073,1714077050199,-500.0,0.00011506,2]
[323537074,1714077050208,-500.0,0.00011506,2]
[323537075,1714077050218,-500.0,0.00011506,2]
[323537076,1714077050227,-500.0,0.00011506,2]
[323537077,1714077050237,-500.0,0.00011506,2]
[323537078,1714077050246,-500.0,0.00011506,2]
[323537079,1714077050256,-530.97,0.00011506,2]
[323537080,1714077050265,-7823.88,0.00011506,2]
[323537081,1714077050275,-500.0,0.00011506,2]
[323537082,1714077050285,-500.0,0.00011506,2]
[323537083,1714077050294,-5661.12,0.00011506,2]
[323537084,1714077050304,-859.79,0.00011506,2]
[323537085,1714077050313,-530.11,0.00011506,2]
[323537086,1714077050322,-573.79,0.00011506,2]
[323537087,1714077050334,-574.24,0.00011506,2]
[323537088,1714077050344,-547.3,0.00011506,2]
[323537089,1714077050353,-4652.28,0.00011506,2]
[323537090,1714077050363,-500.0,0.00011506,2]
[323537091,1714077050374,-568.96,0.00011506,2]
[323537092,1714077050385,-711.3,0.00011506,2]
[323537093,1714077050394,-2802.11,0.00011506,2]
[323537094,1714077050404,-940.8,0.00011506,2]
[323537095,1714077050414,-2004.46,0.00011506,2]
[323537096,1714077050424,-1448.35,0.00011506,2]
[323537097,1714077050434,-500.0,0.00011506,2]
[323537098,1714077050444,-500.0,0.00011506,2]
[323537099,1714077050453,-500.0,0.00011506,2]
[323537100,1714077050465,-500.0,0.00011506,2]
[323537101,1714077050475,-1814.07,0.00011506,2]
[323537102,1714077050484,-2206.06,0.00011506,2]
[323537103,1714077050494,-843.45,0.00011506,2]
[323537104,1714077050503,-500.0,0.00011506,2]
[323537105,1714077050512,-588.72,0.00011506,2]
[323537106,1714077050521,-3603.18,0.00011506,2]
[323537107,1714077050530,-13987.49,0.00011506,2]
[323537108,1714077050539,-1511.03,0.00011506,2]
[323537109,1714077050549,-192.19193026,0.00011602,2]
[323537110,1714077050559,-307.60035568,0.00011603,2]
[323537111,1714077050569,-1227.0,0.00011606,2]
[323537112,1714077050579,-1256.0,0.00011606,2]
[323537113,1714077050589,-7387.12,0.00011654,2]
[323537114,1714077050598,-1780.89745,0.0001166,2]
[323537115,1714077050607,-500.0,0.00011677,2]
[323537116,1714077050616,-500.0,0.00011677,2]
[323537117,1714077050625,-699.81,0.00011677,2]
[323537118,1714077050634,-1076.46,0.00011677,2]
[323537119,1714077050644,-740.52,0.00011677,2]
[323537120,1714077050653,-671.65,0.00011677,2]
[323537121,1714077050663,-358.78541556,0.00011677,2]
[323537122,1714077050672,-557.7,0.00011677,2]
[323537123,1714077050681,-843.5,0.00011677,2]
[323537124,1714077050691,-2213.09,0.00011677,2]
[323537125,1714077050700,-3213.07,0.00011677,2]
[323537126,1714077050709,-500.0,0.00011677,2]
[323537127,1714077050719,-743.14,0.00011677,2]
[323537128,1714077050727,-500.0,0.00011677,2]
[323537129,1714077050737,-500.0,0.00011677,2]
[323537130,1714077050746,-598.51,0.00011677,2]
[323537131,1714077050755,-1590.73,0.00011677,2]
[323537132,1714077050765,-500.0,0.00011677,2]
[323537133,1714077050774,-1588.07,0.00011677,2]
[323537134,1714077050784,-333.68,0.00011677,2]
[323537135,1714077050793,-500.0,0.00011677,2]
[323537136,1714077050803,-1130.15,0.00011677,2]